fUST/lending_fUST_20240429
["ID","MTS","AMOUNT","RATE_DAILY","PERIOD"]
[23738,1714329386764,363.90428488,9.999e-05,2]
[23739,1714329406781,189.8894259,9.999e-05,2]
[23740,1714329471548,597.2219936,9.999e-05,2]
[23741,1714329475455,16098.46283785,9.999e-05,2]
[23770,1714329528205,158.84979259,9.999e-05,2]
[23771,1714329541775,1057.78601185,9.999e-05,2]
[23776,1714329583000,154.81422293,9.999e-05,2]
[23777,1714329598999,186.25450795,9.999e-05,2]
[23778,1714329606233,154.81422293,9.999e-05,2]
[23779,1714329608220,1491.40548349,9.999e-05,2]
[23781,1714329914149,193.75390213,9.999e-05,2]
[23782,1714330055281,512.65777378,9.999e-05,2]
[23783,1714330098452,597.2219936,9.999e-05,2]
[23784,1714330149126,-154.81422293,0.0001162,2]
[23785,1714330149147,-2624.15801484,0.0001162,2]
[23786,1714330149167,-186.25450795,0.00011621,2]
[23787,1714330149187,-300.0,0.00011621,2]
[23788,1714330149205,-300.0,0.00011621,2]
[23789,1714330149223,-1491.40548349,0.00011622,2]
[23790,1714330149241,-15672.49505265,0.00011622,2]
[23791,1714330149259,-154.81422293,0.00011622,2]
[23792,1714330149279,-9448.07774434,0.00011625,2]
[23793,1714330149306,-15451.92225566,0.00011625,2]
[23794,1714330149325,-154.91821373,0.00012341,2]
[23795,1714330149344,-250.0,0.00012443,2]
[23796,1714330149363,-420.0,0.00012762,2]
[23797,1714330149382,-420.0,0.00012783,2]
[23798,1714330149510,-1501.42864215,0.000129,2]
[23799,1714330149537,-318.0118377,0.00013398,2]
[23800,1714330149558,-22000.0,0.000136,2]
[23801,1714330149577,-166.666666,0.00013699,2]
[23802,1714330149596,-928.36107169,0.00014,2]
[23803,1714330149618,-587.0,0.00014015,2]
[23804,1714330149638,-587.0,0.00014061,2]
[23805,1714330166165,1444.82441594,0.00012973,2]
[23806,1714330203447,1159.31618587,0.00011524,2]
[23843,1714330232649,-318.01183768,0.00014348,2]
[23845,1714330232659,-68.00033517,0.00014898,2]
[23847,1714330232671,-1931.99966483,0.00014898,2]
[23849,1714330232680,-165.0603216,0.00014911,2]
[23851,1714330232689,-300.0,0.00014997,2]
[23853,1714330232699,-300.0,0.00014997,2]
[23855,1714330232708,-112.59203889,0.00014998,2]
[23857,1714330232720,-19080.98407433,0.00014998,2]
[23858,1714330232729,-154.81422293,0.00015298,2]
[23860,1714330232738,-318.01183768,0.00015299,2]
[23861,1714330232747,-165.0603216,0.00015369,2]
[23862,1714330232757,-418.575,0.00015443,2]
[23863,1714330232767,-150.46,0.00015443,2]
[23864,1714330232776,-498.57956333,0.00015568,2]
[23865,1714330232786,-165.0603216,0.00015827,2]
[23866,1714330232795,-154.81422293,0.00016247,2]
[23867,1714330232804,-186.25450795,0.00016248,2]
[23869,1714330232813,-318.01183768,0.00016249,2]
[23871,1714330232823,-165.0603216,0.00016284,2]
[23873,1714330232832,-420.0,0.00016413,2]
[23875,1714330232841,-424.44134518,0.00016432,2]
[23876,1714330232850,-420.0,0.00016497,2]
[23877,1714330232859,-524.1,0.0001668,3]
[23878,1714330232869,-165.0603216,0.00016742,2]
[23879,1714330232878,-318.01183768,0.00017199,2]
[23880,1714330232887,-165.0603216,0.000172,2]
[23881,1714330232896,-156.40991382,0.00017297,2]
[23882,1714330232905,-472.23630873,0.00017297,2]
[23883,1714330232914,-165.34425594,0.00017297,2]
[23884,1714330232923,-1083.92292924,0.00017297,2]
[23885,1714330232932,-180.90408436,0.00017297,2]
[23886,1714330232941,-2867.44600441,0.00017297,2]
[23887,1714330232950,-170.22064044,0.00017297,2]
[23888,1714330232959,-597.99945931,0.00017297,2]
[23889,1714330232969,-15672.49505265,0.00017297,2]
[23890,1714330232978,-1489.36130775,0.00017297,2]
[23891,1714330232988,-218.31032935,0.00017297,2]
[23892,1714330232999,-1100.33521336,0.00017298,2]
[23893,1714330233011,-939.04672329,0.00017298,2]
[23894,1714330233020,-1496.49060323,0.00017298,2]
[23895,1714330233029,-461.59774893,0.00017298,2]
[23896,1714330233038,-155.08625436,0.00017298,2]
[23897,1714330233048,-521.8093147,0.00017298,2]
[23898,1714330233057,-155.10682007,0.00017298,2]
[23899,1714330233066,-155.16737015,0.00017298,2]
[23900,1714330233080,-1010.29704153,0.00017298,2]
[23901,1714330233090,-200.0,0.00017298,2]
[23902,1714330233099,-354.96876268,0.00017298,2]
[23903,1714330233108,-233.17583669,0.00017298,2]
[23904,1714330233118,-713.7870833,0.00017298,2]
[23905,1714330233127,-206.17044886,0.00017298,2]
[23906,1714330233136,-158.18005642,0.00017298,2]
[23907,1714330233145,-200.0,0.00017298,2]
[23908,1714330233155,-314.97500216,0.00017298,2]
[23909,1714330233164,-158.24993973,0.00017298,2]
[23910,1714330233173,-1353.11513473,0.00017298,2]
[23911,1714330233182,-155.19238874,0.00017298,2]
[23912,1714330233191,-154.82968734,0.00017298,2]
[23913,1714330233199,-233.41814442,0.00017298,2]
[23914,1714330233208,-719.62301407,0.00017298,2]
[23915,1714330233219,-208.79729126,0.00017298,2]
[23916,1714330233228,-754.41748247,0.00017298,2]
[23917,1714330233238,-11419.03853637,0.00017299,2]
[23981,1714330239143,-962.61,0.00017299,2]
[24005,1714330240982,-4040.69855073,0.00017299,2]
[24006,1714330240994,-2478.09096799,0.00017299,2]
[24341,1714330244009,-250.0,0.00016546,2]
[24343,1714330244019,-63.7172,0.00017299,2]
[31535,1714330553668,524.0,0.000226,29]
[31536,1714330589029,500.01278505,0.000226,29]
[31537,1714330767836,520.3609854,9.999e-05,2]
[31538,1714330874389,182.08229437,9.999e-05,2]
[31539,1714330875769,308.72716186,9.999e-05,2]
[31540,1714330881553,19195.82929779,9.999e-05,2]
[31541,1714330893550,19189.2050261,9.999e-05,2]
[31598,1714331253170,-300.0,0.00013495,2]
[31599,1714331253190,-300.0,0.00013495,2]
[31600,1714331253210,-12648.62387083,0.00013496,2]
[31601,1714331345101,-931.4354149,0.00012972,2]
[31602,1714331345122,-250.0,0.00013007,2]
[31614,1714331370087,-3023.87118182,0.00013496,2]
[31615,1714331370109,-300.0,0.00013496,2]
[31616,1714331370130,-300.0,0.00013496,2]
[31617,1714331370151,-24900.0,0.00013497,2]
[31618,1714331370171,-186.7584963,0.00013589,2]
[31619,1714331370191,-304.390787,0.00013699,2]
[31620,1714331370210,-753.60009444,0.00013762,2]
[31621,1714331370230,-166.666666,0.00013862,2]
[31622,1714331370250,-165.06032163,0.00014696,2]
[31623,1714331370270,-420.0,0.00014793,2]
[31624,1714331370289,-3645.28438502,0.00014798,2]
[31667,1714331433087,-127.63063863,0.00014798,2]
[31669,1714331433096,-122.36936137,0.00015583,2]
[32216,1714331439192,-182.02142563,0.00015583,2]
[32218,1714331439202,-166.666666,0.00015657,2]
[32220,1714331439212,-154.79876161,0.0001592,2]
[32222,1714331439221,-438.55399216,0.00015921,2]
[32224,1714331439231,-438.55399216,0.00016241,2]
[32226,1714331439240,-551.9,0.0001638,3]
[32228,1714331439251,-928.07428214,0.00016433,2]
[32230,1714331439260,-438.55399216,0.00016561,2]
[32231,1714331439270,-438.55399216,0.0001688,2]
[32233,1714331439279,-321.50475875,0.000171,2]
[32236,1714331439289,-300.0,0.00017199,2]
[32238,1714331439299,-300.0,0.00017199,2]
[32240,1714331439309,-438.55399216,0.000172,2]
[32242,1714331439318,-22903.25814622,0.000172,2]
[32244,1714331439331,-12000.0,0.000172,2]
[32260,1714331439492,-9540.74185378,0.000172,2]
[32262,1714331439501,-185.69668253,0.00017298,2]
[32264,1714331439511,-1621.09215219,0.00017298,2]
[32266,1714331439520,-1202.83854325,0.00017298,2]
[32268,1714331439530,-2625.35839845,0.00017298,2]
[32270,1714331439539,-638.34852538,0.00017298,2]
[32272,1714331439549,-158.79873753,0.00017298,2]
[32274,1714331439558,-193.67351203,0.00017298,2]
[32276,1714331439567,-678.23749148,0.00017298,2]
[32278,1714331439576,-154.87609912,0.00017298,2]
[32280,1714331439585,-526.55247866,0.00017298,2]
[32282,1714331439594,-155.3563839,0.00017298,2]
[32284,1714331439603,-472.23630873,0.00017298,2]
[32286,1714331439612,-597.02936604,0.00017298,2]
[32288,1714331439622,-884.2224895,0.00017298,2]
[32290,1714331439631,-308.4605019,0.00017298,2]
[32292,1714331439640,-475.03872929,0.00017298,2]
[32294,1714331439649,-13836.73010652,0.00017298,2]
[46985,1714332005560,512.65777378,9.999e-05,2]
[46997,1714332454122,-300.0,0.00014861,2]
[46998,1714332454144,-139.65673729,0.00014861,2]
[47011,1714332632044,-300.0,0.00014861,2]
[47012,1714332632053,-300.0,0.00014861,2]
[47013,1714332632063,-15672.49505265,0.00014862,2]
[47014,1714332632073,-198.1306054,0.00014863,2]
[47015,1714332632082,-24900.0,0.00014863,2]
[47016,1714332632092,-2140.7925779,0.00014947,2]
[47017,1714332632101,-166.666666,0.00015086,2]
[47018,1714332632111,-250.0,0.00015462,2]
[47019,1714332632120,-162.61115832,0.00016196,2]
[47020,1714332632130,-420.0,0.00016266,2]
[47021,1714332632139,-505.9,0.000163,3]
[47022,1714332632148,-420.0,0.00016347,2]
[47023,1714332632157,-272.74470342,0.00017189,2]
[47024,1714332632167,-29141.3155372,0.000172,2]
[47025,1714332632176,-505.9,0.0001727,3]
[47026,1714332632185,-747.66628584,0.0001729,3]
[47027,1714332632194,-175.57279253,0.00017298,2]
[47028,1714332632203,-345.0880402,0.00017298,2]
[47029,1714332632212,-521.1072121,0.00017298,2]
[47030,1714332632222,-34517.93025975,0.00017299,2]
[47031,1714332632231,-11138.4431222,0.00017299,2]
[47032,1714332632241,-729.7450776,0.00017299,2]
[47033,1714332632250,-197.29815439,0.00017299,2]
[47034,1714332632259,-160.0,0.00017299,2]
[47035,1714332632268,-34182.96718051,0.000173,5]
[56079,1714333644104,-166.666666,0.00015179,2]
[56080,1714333644124,-300.0,0.0001521,2]
[56081,1714333644144,-300.0,0.0001521,2]
[56082,1714333644164,-927.87342115,0.00015211,2]
[56132,1714333838463,-250.0,0.0001436,2]
[56133,1714333838472,-300.0,0.0001521,2]
[56134,1714333838482,-300.0,0.0001521,2]
[56136,1714333838491,-955.9274359,0.00015211,2]
[56137,1714333838500,-14744.6216315,0.00015211,2]
[56139,1714333838509,-18297.42343378,0.00015212,2]
[56459,1714333841699,-6602.57656622,0.00015212,2]
[56461,1714333841708,-166.666666,0.00015347,2]
[56463,1714333841717,-421.6,0.0001567,3]
[56465,1714333841726,-272.74470342,0.000165,2]
[56467,1714333841736,-421.6,0.0001652,3]
[56468,1714333841745,-420.0,0.00016643,2]
[56470,1714333841754,-420.0,0.00016731,2]
[56473,1714333841764,-3229.96477825,0.0001727,2]
[56475,1714333841773,-155.0190427,0.00017298,2]
[56477,1714333841782,-308.61077636,0.00017298,2]
[56479,1714333841791,-597.02936604,0.00017298,2]
[56480,1714333841800,-154.8915759,0.00017298,2]
[56483,1714333841810,-160.0,0.00017299,2]
[56485,1714333841819,-41214.56409099,0.000173,5]
[56487,1714333841828,-24780.01536966,0.000173,2]
[56983,1714333846492,-19050.088,0.000173,2]
[64124,1714333948971,564.88021518,9.999e-05,2]
[324788716,1714334347615,437.46994859,9.999e-05,2]
[324788717,1714334350010,154.79876161,9.999e-05,2]
[324788718,1714334352710,1203.06173152,9.999e-05,2]
[324788719,1714334366863,520.3609854,9.999e-05,2]
[324788720,1714334390455,193.75390213,9.999e-05,2]
[324788721,1714334390533,235.75305849,9.999e-05,2]
[324788722,1714334391014,521.92146173,9.999e-05,2]
[324788723,1714334396797,1312.75517414,0.0001,2]
[324788724,1714334397779,549.90481021,9.999e-05,2]
[324788725,1714334401475,154.79876161,9.999e-05,2]
[324788726,1714334408811,208.03748241,9.999e-05,2]
[324788727,1714334409647,154.79876161,9.999e-05,2]
[324788728,1714334410457,1621.41921468,9.999e-05,2]
[324788729,1714334411921,154.79876161,9.999e-05,2]
[324788730,1714334413648,154.79876161,9.999e-05,2]
[324788731,1714334414201,154.79876161,9.999e-05,2]
[324788732,1714334420555,564.88021518,9.999e-05,2]
[324788744,1714334683333,235.75305849,9.999e-05,2]
[324788746,1714334684421,1621.41921468,9.999e-05,2]
[324788749,1714334701637,154.79876161,9.999e-05,2]
[324788750,1714334716508,154.79876161,9.999e-05,2]
[324788751,1714334718322,549.90481021,9.999e-05,2]
[324788753,1714334730187,154.79876161,9.999e-05,2]
[324788754,1714334731085,564.88021518,9.999e-05,2]
[324788799,1714334829170,-386.686525,0.00011073,2]
[324788800,1714334829199,-214.2955848,0.00011077,2]
[324788801,1714334829226,-1069.40911978,0.0001207,2]
[324788808,1714334837135,-1050.06073844,0.00011072,2]
[324788809,1714334862136,16100.53592353,9.999e-05,2]
[324788810,1714334880119,4224.95737111,9.999e-05,2]
[324788812,1714334932425,243.53346427,9.999e-05,2]
[324788813,1714334935599,200.0,9.999e-05,2]
[324788814,1714334945121,-154.79876161,0.00010817,2]
[324788815,1714334945141,-564.88021518,0.00010818,2]
[324788816,1714334945160,-549.90481021,0.00010819,2]
[324788817,1714334945180,-250.0,0.0001082,2]
[324788818,1714334945199,-1621.41921468,0.00012065,2]
[324788819,1714334945219,-520.3609854,0.00012066,2]
[324788820,1714334945238,-15672.49505265,0.00012066,2]
[324788821,1714334945258,-5806.43566908,0.00012066,2]
[324788822,1714334945280,-300.0,0.00012067,2]
[324788823,1714334945300,-300.0,0.00012067,2]
[324788824,1714334945321,-48657.52873651,0.00012068,2]
[324788825,1714334959117,-1511.1729274,0.00011746,2]
[324788826,1714334959137,-568.13277892,0.00012067,2]
[324788827,1714334959157,-207.0893145,0.00012067,2]
[324788828,1714334959178,-10542.85785599,0.00012068,2]
[324788829,1714334959198,-154.99654985,0.00012075,2]
[324788830,1714334959217,-290.59457952,0.00012075,2]
[324788831,1714334959237,-13307.1904363,0.00012079,2]
[324788832,1714334959256,-168.9644791,0.00012931,2]
[324788833,1714334959277,-1530.46663584,0.00012937,2]
[324788834,1714334959297,-5042.28113666,0.00013037,2]
[324788835,1714334959556,-10873.40185934,0.00013037,2]
[324788836,1714334959578,-19351.05141142,0.00013037,2]
[324788837,1714334960134,-2228.36975273,0.00013037,2]
[324788838,1714334972085,-2541.44819873,0.00013037,2]
[324788839,1714334981473,363.86320338,9.999e-05,2]
[324788840,1714335001239,468.79013614,9.999e-05,2]
[324788911,1714335032553,-516.20767634,0.00013037,2]
[324788914,1714335032564,-262.92296078,0.00013037,2]
[324788916,1714335032574,-166.666666,0.00013699,2]
[324788918,1714335032583,-304.390787,0.00013699,2]
[324788920,1714335032592,-173.46900635,0.00013733,2]
[324788922,1714335032603,-305.51476709,0.00013733,2]
[324788924,1714335032613,-768.70403116,0.00013733,2]
[324788926,1714335032622,-300.0,0.00014623,2]
[324788928,1714335032631,-300.0,0.00014623,2]
[324788930,1714335032640,-521.55319533,0.00014624,2]
[324788931,1714335032650,-193.62431448,0.00014624,2]
[324788933,1714335032659,-1311.80822808,0.00014624,2]
[324788935,1714335032670,-154.89154809,0.00014624,2]
[324788937,1714335032679,-207.89824087,0.00014624,2]
[324788939,1714335032688,-154.93796295,0.00014624,2]
[324788941,1714335032697,-154.92249236,0.00014624,2]
[324788943,1714335032706,-151.0,0.00014627,2]
[324788945,1714335032715,-151.0,0.00014627,2]
[324788947,1714335032725,-151.0,0.00014627,2]
[324788949,1714335032734,-151.0,0.00014627,2]
[324788951,1714335032743,-151.0,0.00014627,2]
[324788953,1714335032752,-151.0,0.00014627,2]
[324788955,1714335032761,-151.0,0.00014627,2]
[324788957,1714335032771,-151.0,0.00014627,2]
[324788959,1714335032780,-151.0,0.00014627,2]
[324788961,1714335032789,-151.0,0.00014627,2]
[324788963,1714335032799,-151.245161,0.00014627,2]
[324788965,1714335032808,-151.22928,0.00014627,2]
[324788967,1714335032818,-151.0,0.00014627,2]
[324788969,1714335032826,-280.439612,0.00014627,2]
[324788971,1714335032836,-410.580392,0.00014627,2]
[324788973,1714335032845,-410.580392,0.00014627,2]
[324788975,1714335032854,-151.0,0.00014627,2]
[324788977,1714335032863,-13408.40332269,0.00014627,2]
[324788979,1714335032872,-658.9994999,0.00014964,2]
[324788980,1714335032882,-419.547,0.00015424,2]
[324788982,1714335032891,-295.257,0.00015424,2]
[324788984,1714335032901,-582.2,0.0001564,3]
[324788986,1714335032910,-420.0,0.0001601,2]
[324788988,1714335032921,-420.0,0.00016085,2]
[324788990,1714335032930,-174.9987178,0.000161,2]
[324788992,1714335032939,-564.88021518,0.00016489,2]
[324788994,1714335032949,-582.2,0.0001649,3]
[324788996,1714335032959,-272.74470342,0.000165,2]
[324788998,1714335032968,-5806.43566908,0.00017097,2]
[324789000,1714335032977,-1224.37330864,0.00017098,2]
[324789002,1714335032986,-1224.37330864,0.00017124,2]
[324789004,1714335032995,-15672.49505265,0.00017148,2]
[324789006,1714335033004,-1224.37330864,0.00017149,2]
[324789008,1714335033014,-1224.37330864,0.00017175,2]
[324789010,1714335033023,-468.79013614,0.00017196,2]
[324789012,1714335033032,-1091.30429574,0.00017197,2]
[324789014,1714335033041,-718.44665129,0.00017197,2]
[324789016,1714335033051,-155.06169061,0.00017198,2]
[324789018,1714335033059,-13647.5285775,0.00017198,2]
[324789020,1714335033071,-1274.70376296,0.00017198,2]
[324789022,1714335033082,-34859.60097848,0.00017198,2]
[324789024,1714335033092,-890.4711269,0.00017199,2]
[324789026,1714335033101,-318.46858501,0.000172,2]
[324789028,1714335033110,-5298.86771756,0.000172,2]
[324789030,1714335033121,-497.24688747,0.000172,2]
[324789032,1714335033132,-1850.0,0.000172,2]
[324789665,1714335038810,-214.687252,0.00014627,2]
[324789666,1714335038820,-164.993748,0.000172,2]
[324789667,1714335038831,-8.55236,0.000172,2]
[324789668,1714335038841,-173.546108,0.000172,2]
[324789669,1714335038850,-151.0,0.000172,2]
[324789670,1714335038859,-151.0,0.000172,2]
[324789672,1714335038868,-151.0,0.000172,2]
[324789674,1714335038878,-151.0,0.000172,2]
[324789676,1714335038887,-151.0,0.000172,2]
[324789678,1714335038896,-151.0,0.000172,2]
[324789679,1714335038905,-41.24879664,0.000172,2]
[324789680,1714335038916,-109.75120336,0.000172,2]
[324789681,1714335038926,-151.0,0.000172,2]
[324789683,1714335038935,-151.0,0.000172,2]
[324789685,1714335038945,-151.0,0.000172,2]
[324789687,1714335038954,-151.0,0.000172,2]
[324789689,1714335038964,-151.0,0.000172,2]
[324789691,1714335038975,-151.0,0.000172,2]
[324789693,1714335038984,-151.0,0.000172,2]
[324789695,1714335038994,-151.0,0.000172,2]
[324789697,1714335039003,-151.0,0.000172,2]
[324789699,1714335039012,-151.0,0.000172,2]
[324789701,1714335039022,-151.0,0.000172,2]
[324789703,1714335039031,-151.0,0.000172,2]
[324789705,1714335039040,-151.0,0.000172,2]
[324789707,1714335039049,-151.0,0.000172,2]
[324789709,1714335039059,-167.95752,0.000172,2]
[324789711,1714335039068,-151.0,0.000172,2]
[324789713,1714335039078,-151.0,0.000172,2]
[324789715,1714335039087,-151.0,0.000172,2]
[324789717,1714335039096,-410.580392,0.000172,2]
[324789719,1714335039105,-410.580392,0.000172,2]
[324789721,1714335039115,-410.580392,0.000172,2]
[324789723,1714335039124,-410.580392,0.000172,2]
[324789725,1714335039136,-1224.37330864,0.000172,2]
[324789727,1714335039145,-151.0,0.000172,2]
[324789729,1714335039154,-151.0,0.000172,2]
[324789731,1714335039163,-214.687252,0.000172,2]
[324789733,1714335039172,-214.687252,0.000172,2]
[324789735,1714335039180,-412.10241037,0.00017298,2]
[324789737,1714335039190,-172.46465051,0.00017298,2]
[324789739,1714335039200,-191.36833454,0.00017298,2]
[324789741,1714335039210,-308.61077636,0.00017298,2]
[324789743,1714335039219,-883.9212987,0.00017298,2]
[324789745,1714335039228,-157.82553701,0.00017298,2]
[324789747,1714335039237,-1490.54643083,0.00017298,2]
[324789749,1714335039247,-154.87609912,0.00017298,2]
[324789751,1714335039256,-212.0994584,0.00017298,2]
[324789753,1714335039265,-155.10438064,0.00017298,2]
[324789755,1714335039275,-472.23630873,0.00017298,2]
[324789757,1714335039283,-155.65981107,0.00017298,2]
[324789759,1714335039294,-1890.65321071,0.00017298,2]
[324789761,1714335039303,-162.07976976,0.00017298,2]
[324789763,1714335039313,-597.02936604,0.00017298,2]
[324789765,1714335039323,-206.09782636,0.00017298,2]
[324789767,1714335039332,-155.05535733,0.00017298,2]
[324789769,1714335039342,-155.03633668,0.00017298,2]
[324789771,1714335039351,-1057.20199727,0.00017298,2]
[324789773,1714335039363,-1202.17326339,0.00017298,2]
[324789775,1714335039377,-173.546108,0.00017299,2]
[324789777,1714335039386,-173.546108,0.00017299,2]
[324789779,1714335039396,-173.295504,0.00017299,2]
[324789781,1714335039406,-151.0,0.00017299,2]
[324789783,1714335039415,-151.0,0.00017299,2]
[324789785,1714335039426,-160.0,0.00017299,2]
[324789788,1714335039435,-30910.92306824,0.000173,5]
[324789789,1714335039445,-143733.26848396,0.000173,2]
[324789792,1714335039460,-6395.99999998,0.000173,2]
[324789794,1714335039472,-51035.56753686,0.000173,2]
[324789796,1714335039483,-1506.41130425,0.000173,2]
[324789798,1714335039494,-4414.00553086,0.000173,2]
[324789800,1714335039504,-6593.55140271,0.000173,2]
[324789802,1714335039516,-60117.53324808,0.000173,2]
[324789805,1714335039527,-2086.53808771,0.000173,2]
[324789807,1714335039538,-4512.42841882,0.000173,2]
[324790089,1714335042551,-214.687252,0.00014627,2]
[324790091,1714335042560,-151.0,0.000172,2]
[324790093,1714335042569,-214.687252,0.000172,2]
[324790095,1714335042578,-214.687252,0.000172,2]
[324790097,1714335042586,-85894.6548122,0.000173,2]
[324790099,1714335042595,-281.671186,0.000173,2]
[324790101,1714335042604,-151.0,0.000173,2]
[324790103,1714335042613,-173.546108,0.000173,2]
[324790105,1714335042621,-173.546108,0.000173,2]
[324790107,1714335042630,-151.0,0.000173,2]
[324790108,1714335042639,-151.0,0.000173,2]
[324790111,1714335042649,-151.0,0.000173,2]
[324790113,1714335042658,-151.757898,0.000173,2]
[324790115,1714335042667,-151.0,0.000173,2]
[324790117,1714335042677,-151.0,0.000173,2]
[324790119,1714335042686,-151.0,0.000173,2]
[324790120,1714335042695,-151.0,0.000173,2]
[324790122,1714335042704,-210.374545,0.000173,2]
[324790124,1714335042714,-151.0,0.000173,2]
[324790126,1714335042723,-151.0,0.000173,2]
[324790129,1714335042732,-410.580392,0.000173,2]
[324790131,1714335042741,-410.580392,0.000173,2]
[324790133,1714335042750,-151.0,0.000173,2]
[324790135,1714335042759,-214.687252,0.000173,2]
[324790137,1714335042768,-151.0,0.000173,2]
[324790138,1714335042779,-214.687252,0.000173,2]
[324790140,1714335042788,-582.2,0.0001734,3]
[324790142,1714335042799,-587.0,0.00017529,2]
[324790144,1714335042808,-587.0,0.00017694,2]
[324790146,1714335042819,-153.0,0.00017808,2]
[324790148,1714335042829,-150.24054734,0.00018,5]
[324790151,1714335042839,-3133.89045865,0.00018,7]
[324790153,1714335042848,-5684.62345312,0.00018,2]
[324790155,1714335042858,-589.0,0.000181,2]
[324790157,1714335042867,-582.2,0.000182,3]
[324790159,1714335042876,-154.89155736,0.00018409,2]
[324790161,1714335042885,-417.0,0.00018424,2]
[324790163,1714335042894,-603.65268039,0.000185,2]
[324790164,1714335042904,-151.0,0.000189,2]
[324790170,1714335042913,-151.0,0.000189,2]
[324790173,1714335042924,-151.0,0.000189,2]
[324790175,1714335042933,-151.0,0.000189,2]
[324790177,1714335042942,-151.0,0.000189,2]
[324790180,1714335042951,-410.580392,0.000189,2]
[324790183,1714335042961,-410.580392,0.000189,2]
[324790187,1714335042970,-3852.60884982,0.000189,2]
[324790190,1714335042979,-214.687252,0.000189,2]
[324790194,1714335042989,-151.0,0.000189,2]
[324790197,1714335043005,-214.687252,0.000189,2]
[324790201,1714335043015,-7932.17089947,0.00019,2]
[324790205,1714335043024,-151.0,0.00019,2]
[324790209,1714335043033,-151.0,0.00019,2]
[324790214,1714335043042,-151.0,0.00019,2]
[324790216,1714335043052,-151.0,0.00019,2]
[324790218,1714335043061,-173.546108,0.00019,2]
[324790220,1714335043070,-173.546108,0.00019,2]
[324790222,1714335043080,-151.0,0.00019,2]
[324790224,1714335043089,-151.0,0.00019,2]
[324790226,1714335043099,-582.2,0.0001905,3]
[324790236,1714335043107,-305.59553593,0.00019178,2]
[324790246,1714335043117,-224.23600146,0.00019178,2]
[324790254,1714335043126,-172.78089644,0.00019178,2]
[324790261,1714335043135,-500.0,0.00019178,2]
[324790266,1714335043145,-168.2213182,0.00019178,2]
[324790269,1714335043154,-290.81573475,0.00019178,2]
[324790273,1714335043163,-160.393693,0.00019178,2]
[324790274,1714335043172,-160.6889326,0.00019178,2]
[324790278,1714335043185,-160.064472,0.00019178,2]
[324790280,1714335043194,-823.0,0.00019192,2]
[324790283,1714335043203,-823.0,0.00019463,2]
[324790285,1714335043213,-624.13425972,0.0001972,2]
[324790287,1714335043223,-151.0,0.0001972,2]
[324790289,1714335043232,-582.2,0.000199,3]
[324790292,1714335043242,-2368.79938127,0.00019998,2]
[324790294,1714335043251,-151.0,0.00019998,2]
[324790296,1714335043260,-410.580392,0.00019998,2]
[324790299,1714335043270,-410.580392,0.00019998,2]
[324790300,1714335043279,-214.687252,0.00019998,2]
[324790302,1714335043288,-214.687252,0.00019998,2]
[324790304,1714335043298,-67400.84108775,0.0002,2]
[324790307,1714335043307,-329.86863425,0.0002,2]
[324790309,1714335043316,-241.6470421,0.0002,2]
[324790311,1714335043326,-53066.81580581,0.0002,2]
[324790313,1714335043335,-4233.26705089,0.0002,2]
[324790315,1714335043344,-250.207362,0.0002,2]
[324790316,1714335043353,-151.909461,0.0002,2]
[324790318,1714335043362,-154.79876161,0.0002,2]